Cogmind - Beta 11 X6 @@@ ROGUE MODE // 2021.07.31 @ 15:06:55 Player: Plexion Result: Destroyed by 8R-AWN with 8R-AWN's Boregun Performance ------------- Evolutions (0) 0 Regions Visited (3) 600 Robots Destroyed (17) 85 Value Destroyed (303) 303 Prototype IDs (24) 480 Alien Tech Used (0) 0 Bonus (270) 270 TOTAL SCORE: 1738 Bonus ------- Aligned with FarCom 300 Friendly Fire -30 Cogmind --------- Core Integrity 0/250 Matter 253/300 Energy 100/100 System Corruption 0% Temperature Cool (0) Movement Core (3500) Ox69 Location -10/Exiles Parts ------- > --- POWER (1) -------- (None) > --- PROPULSION (2) --- (None) > --- UTILITY (2) ------ Humpback > --- WEAPON (2) ------- AWS/Thermal > --- INVENTORY (35) --- Ion Engine Large Storage Unit Spread Laser Spread Laser Assault Rifle Assault Rifle Light Assault Rifle Assault Cannon Peak State ------------ > --- POWER ------------ (None) > --- PROPULSION ------- (None) > --- UTILITY ---------- Humpback > --- WEAPON ----------- AWS/Thermal > --- INVENTORY -------- Ion Engine Large Storage Unit Spread Laser Spread Laser Assault Rifle Assault Rifle Light Assault Rifle Assault Cannon [Rating: 19] Favorites ----------- Power Ion Engine Engine Ion Engine Propulsion Light Treads Treads Light Treads Utility Large Storage Unit Device Heat Sink Storage Large Storage Unit Weapon Assault Rifle Energy Gun AWS/Thermal Energy Cannon Advanced Beam Cannon Ballistic Gun Assault Rifle Build | -11 -10 -10 -10 ------- Run | Scr Mat Min Exi Slots Evolved . | . . . . Power . | . . . . Propulsion . | . . . . Utility . | . . . . Weapon . | . . . . Parts Attached 23 | 6 9 2 6 Power 1 | 1 . . . Engine 1 | 1 . . . Core . | . . . . Reactor . | . . . . Propulsion 2 | 2 . . . Treads 2 | 2 . . . Leg . | . . . . Wheel . | . . . . Hover . | . . . . Flight . | . . . . Utility 13 | 1 6 2 4 Device 3 | . . 2 1 Storage 10 | 1 6 . 3 Processor . | . . . . Hackware . | . . . . Protection . | . . . . Artifact . | . . . . Weapon 7 | 2 3 . 2 Energy Gun 2 | . . . 2 Energy Cannon 1 | . 1 . . Ballistic Gun 4 | 2 2 . . Ballistic Cannon . | . . . . Launcher . | . . . . Special Weapon . | . . . . Impact Weapon . | . . . . Slashing Weapon . | . . . . Piercing Weapon . | . . . . Special Melee Weapon . | . . . . Unidentified Prototypes 1 | . 1 . . Parts Lost 4 | . . . 4 Power 1 | . . . 1 Propulsion 2 | . . . 2 Utility . | . . . . Weapon 1 | . . . 1 Highest Loss Streak 4 | . . . 4 Average Slot Usage (%) 91 | . 85 98 91 Engine 13 | . 14 14 13 Treads 27 | . 28 28 26 Device 7 | . . 12 8 Storage 14 | . 14 14 13 Ballistic Gun 27 | . 27 28 26 Naked Turns . | . . . . Heaviest Build 209 | 14 29 30 209 Greatest Support 40 | 40 40 40 40 Greatest Overweight (x) 69 | 2 . . 69 Average Overweight (x) . | . . . . Largest Inventory Capacity 35 | 8 25 15 35 Average Capacity 17 | 7 10 15 22 Most Carried 16 | 2 9 10 16 Average Carried 10 | 1 5 9 12 Final Capacity 35 | 8 15 15 35 Final Carried 10 | 2 8 10 8 Class Distribution -------------------- 79% | Mutant 20% | Hauler-Mutant Dominant Class ---------------- Mutant | -10/Materials Mutant | -10/Mines Mutant | -10/Exiles Resources | -11 -10 -10 -10 ----------- Run | Scr Mat Min Exi Matter Collected 690 | 183 374 68 65 Remotely . | . . . . Salvage Created 626 | . 472 100 54 Parts 35 | . 31 4 . Haulers Intercepted 2 | . 2 . . Recyclers Shooed . | . . . . Parts Field Recycled . | . . . . Retrieved Matter . | . . . . Parts Self-Destructed . | . . . . Prevented . | . . . . Kills | -11 -10 -10 -10 ------- Run | Scr Mat Min Exi Combat Hostiles Destroyed 14 | . 12 . 2 Guns 14 | . 12 . 2 Classes Destroyed 7 | . 4 1 2 Hauler 2 | . 2 . . Recycler 1 | . . 1 . Watcher 1 | . 1 . . Swarmer 6 | . 6 . . Grunt 6 | . 6 . . Zionite 1 | . . . 1 Assembled 2 | . . . 2 Best Kill Streak 3 | . 3 1 2 Combat Bots Only 3 | . 3 . 2 Max Kills in Single Turn 1 | . 1 1 1 Gunslinging . | . . . . Exploded . | . . . . Melee . | . . . . Uniques/NPCs Destroyed . | . . . . Combat | -11 -10 -10 -10 -------- Run | Scr Mat Min Exi Damage Taken 1365 | . 417 . 948 Core 256 | . 54 . 202 Absorbed by Shields . | . . . . Core Remaining (%) 100 | 100 . . . Volleys Fired 55 | . 44 4 7 Largest 2 | . 2 2 2 Hottest 40 | . 40 40 40 Shots Fired 179 | . 88 8 83 Gun 179 | . 88 8 83 Cannon . | . . . . Launcher . | . . . . Special . | . . . . Kinetic 109 | . 88 8 13 Thermal 70 | . . . 70 Explosive . | . . . . Electromagnetic . | . . . . Robot Hit Streak 13 | . 13 4 10 Robot Miss Streak 2 | . 2 1 2 Penetration Max . | . . . . Secondary Targets 1 | . . . 1 Max Gunslinging Chain 1 | . . . 1 Autonomous 70 | . . . 70 Shots Hit Robots 131 | . 59 6 66 Core Hits 40 | . 24 2 14 Critical Kills 1 | . . . 1 Critical Parts Destroyed . | . . . . Critical Strikes 1 | . . . 1 Destroy 1 | . . . 1 Melee Attacks . | . . . . Impact . | . . . . Slashing . | . . . . Piercing . | . . . . Sneak Attacks . | . . . . Combat Hostiles . | . . . . Follow-up Attacks . | . . . . Damage Inflicted 1067 | . 761 69 237 Guns 1067 | . 761 69 237 Cannons . | . . . . Explosions . | . . . . Melee . | . . . . Ramming . | . . . . Kinetic 923 | . 761 69 93 Thermal 144 | . . . 144 Explosive . | . . . . Electromagnetic . | . . . . Impact . | . . . . Slashing . | . . . . Piercing . | . . . . Highest Corruption . | . . . . Average Corruption . | . . . . Corruption Purged . | . . . . Overload Shots . | . . . . Overflow Damage . | . . . . Projectiles . | . . . . Explosions . | . . . . Melee . | . . . . Knockbacks . | . . . . Impact . | . . . . Kinetic . | . . . . Secondary . | . . . . Self-Inflicted Damage . | . . . . Shots . | . . . . Rammed . | . . . . Targets Rammed . | . . . . Kicked . | . . . . Crushed . | . . . . Highest Temperature 2 | . 2 . . Average Temperature 2 | . 2 . . Received Heat Transfer 171 | . 171 . . Siege Activations . | . . . . Robots Corrupted . | . . . . Combat Hostiles . | . . . . Parts Fried . | . . . . Impact Corruptions . | . . . . Robots Melted . | . . . . Combat Hostiles . | . . . . Parts Melted . | . . . . Heat Transferred 522 | . . . 522 Parts Sabotaged . | . . . . Parts Stolen . | . . . . Parts Stripped . | . . . . Power Chain Reactions . | . . . . Missiles Intercepted . | . . . . Alert | -11 -10 -10 -10 ------- Run | Scr Mat Min Exi Peak Influence 211 | . 211 88 . Initial 82 | . . 82 . Average 83 | . 109 59 . Maximum Alert Level 1 | . 1 . . Low Security (%) 90 | 100 82 100 . Level 1 9 | . 17 . . Level 2 . | . . . . Level 3 . | . . . . Level 4 . | . . . . Level 5 . | . . . . High Security . | . . . . Max Security . | . . . . Squads Dispatched 3 | . 2 1 . Investigation 1 | . . 1 . Extermination . | . . . . Reinforcement 2 | . 2 . . Assault . | . . . . Garrison . | . . . . Intercept . | . . . . Construction Impeded . | . . . . Haulers Reinforced . | . . . . Active Scanning Responses . | . . . . Cargo Convoy Interrupts . | . . . . Stealth | -11 -10 -10 -10 --------- Run | Scr Mat Min Exi Distress Signals 1 | . 1 . . Communications Jammed . | . . . . Distress Signals . | . . . . Times Spotted 22 | . 19 . 3 Peak Tracking Total 10 | . 3 . 10 Tactical Retreats 1 | . . . 1 Traps | -11 -10 -10 -10 ------- Run | Scr Mat Min Exi Traps Triggered 1 | . 1 . . Indirectly . | . . . . Trap Hack Attempts . | . . . . Triggered . | . . . . Disarmed . | . . . . Reprogrammed . | . . . . Reused . | . . . . Traps Extracted . | . . . . Installed . | . . . . Triggered . | . . . . Exploded 3 | . . . 3 Machines | -11 -10 -10 -10 ---------- Run | Scr Mat Min Exi Machines Disabled 2 | . . . 2 Max in Single Turn 1 | . . . 1 Machines Sabotaged . | . . . . Garrisons Compromised . | . . . . Overloaded Fab Kills . | . . . . Fab Network Shutdowns . | . . . . Hacking | -11 -10 -10 -10 --------- Run | Scr Mat Min Exi Machines Accessed 5 | . 2 1 2 Terminals 2 | . 2 . . Fabricators . | . . . . Repair Stations . | . . . . Recycling Units . | . . . . Scanalyzers . | . . . . Garrison Access . | . . . . Total Hacks 9 | . 6 1 2 Successful 7 | . 4 1 2 Failed 2 | . 2 . . Catastrophic . | . . . . Database Lockouts . | . . . . Manual 7 | . 6 . 1 Terminals 6 | . 6 . . Fabricators . | . . . . Repair Stations . | . . . . Recycling Units . | . . . . Scanalyzers . | . . . . Garrison Access . | . . . . Terminal Hacks 6 | . 3 1 2 Record 1 | . . . 1 Robot Analysis 1 | . 1 . . Open Door 1 | . . 1 . Zone Layout 2 | . 2 . . EX-Prototype ID Bank 1 | . . . 1 Fabricator Hacks . | . . . . Repair Station Hacks . | . . . . Recycling Unit Hacks . | . . . . Scanalyzer . | . . . . Garrison Access Hacks . | . . . . Unauthorized Hacks 1 | . 1 . . Terminals 1 | . 1 . . Track 1 | . 1 . . Fabricators . | . . . . Repair Stations . | . . . . Recycling Units . | . . . . Scanalyzers . | . . . . Garrison Access . | . . . . Data Cores Recovered . | . . . . Used . | . . . . Hacking Detections 1 | . 1 . . Full Trace Events . | . . . . Feedback Events . | . . . . Feedback Blocked . | . . . . Robot Schematics Acquired . | . . . . Robots Built . | . . . . Matter . | . . . . Time . | . . . . Total Robot Build Rating . | . . . . Part Schematics Acquired . | . . . . Parts Built . | . . . . Matter . | . . . . Time . | . . . . Total Part Build Rating . | . . . . Parts Repaired . | . . . . Time . | . . . . Parts Recycled . | . . . . Recycled Matter . | . . . . Retrieved Matter . | . . . . Retrieved Components . | . . . . Parts Scanalyzed . | . . . . Part Schematics Acquired . | . . . . Parts Damaged . | . . . . Bothacking | -11 -10 -10 -10 ------------ Run | Scr Mat Min Exi Used RIF Installer . | . . . . Robots Hacked . | . . . . Non-combat . | . . . . Combat . | . . . . Robot Hacks Applied . | . . . . Relay Couplers Released . | . . . . Robots Rewired . | . . . . Allies Hacked . | . . . . Hacks Repelled . | . . . . Allies | -11 -10 -10 -10 -------- Run | Scr Mat Min Exi Total Allies 6 | . . 6 . Largest Group 6 | . . 6 5 Highest-Rated Group 116 | . . 116 102 Highest-Rated Ally 31 | . . 31 31 Total Orders 5 | . . . 5 STAY 4 | . . . 4 FOLLOW 1 | . . . 1 Ally Attacks 7 | . . . 7 Total Damage 5 | . . . 5 Kills . | . . . . Allies Corrupted . | . . . . Allies Melted . | . . . . Intel | -11 -10 -10 -10 ------- Run | Scr Mat Min Exi Robot Analysis Total 1 | . 1 . . Derelict Logs Recovered . | . . . . Drone Launches . | . . . . Drone Recoveries . | . . . . Exploration | -11 -10 -10 -10 ------------- Run | Scr Mat Min Exi Turns Passed 3200 | 79 771 555 1795 Spaces Moved 1512 | 47 369 331 765 Core 18 | 16 . . 2 Treads 1494 | 31 369 331 763 Legs . | . . . . Wheels . | . . . . Hover . | . . . . Flight . | . . . . Fastest Speed 50 | 50 160 160 160 Average Speed 191 | 148 160 160 223 Slowest Speed 3500 | 160 160 160 3500 Overloaded Moves . | . . . . Propulsion Burnouts . | . . . . Robots Hopped . | . . . . Cave-ins Triggered . | . . . . Exploration Rate (%) 56 | 4 70 82 70 Regions Visited 3 Branch Regions 2 Pre-discovered Areas 1 | . . . 1 Known Exits Taken . | . . . . Unknown Exits Taken 3 | 1 1 1 . Scrap Searched 1 | . . 1 . Spaces Dug . | . . . . Terrain Destroyed 10 | . . . 10 Melee . | . . . . Projectile 10 | . . . 10 AOE . | . . . . Terrain Rammed . | . . . . Walls Destroyed . | . . . . Machines Disabled . | . . . . Actions | -11 -10 -10 -10 --------- Run | Scr Mat Min Exi Total 1711 | 54 467 348 842 Wait 55 | . 26 10 19 Move 1509 | 46 368 330 765 Hop . | . . . . Pick Up 42 | 2 7 1 32 Fast Attach 15 | 6 5 2 2 Attach 8 | . 4 . 4 Detach 13 | . 8 1 4 Swap . | . . . . Drop 14 | . 5 . 9 Fire 55 | . 44 4 7 Melee . | . . . . Ram . | . . . . Kick . | . . . . Crush . | . . . . Escape Stasis . | . . . . Rewire . | . . . . Trap . | . . . . Miscellaneous . | . . . . Route ------- -11/Scrapyard -10/Materials (discovered 4 exits: [*Mat x2] / *Min x2) -10/Mines (discovered 2 exits: [*Mat] / *Exi) -10/Exiles (discovered 1 exit: [*Min]) History --------- Turn | Location | Event 23 | -11/Scrapyard | Discovered new exit (range 14) 80 | -11/Scrapyard | Entered Materials 250 | -10/Materials | Discovered new exit (range 9) 302 | -10/Materials | Build established: Mutant 371 | -10/Materials | Discovered new exit (range 13) 500 | -10/Materials | Discovered new exit (range 12) 754 | -10/Materials | Discovered new exit (range 10) 851 | -10/Materials | Entered Mines 902 | -10/Mines | Met a Derelict shopkeep closing up shop 963 | -10/Mines | Assisted by bots powering up and referring to "LRC-V3" 1316 | -10/Mines | Discovered new exit (range 15) 1319 | -10/Mines | A weapon hastily lodged in a ceiling crevice suddenly fell to the ground 1351 | -10/Mines | Received a Mining Laser from a helpful Derelict 1388 | -10/Mines | Deemed a non-threat by the Exiles lab entrance 1388 | -10/Mines | Discovered new exit (range 5) 1406 | -10/Mines | Entered Exiles 1406 | -10/Exiles | Accompanied by 5 allies 1436 | -10/Exiles | Led the pair of lost Derelicts to a safe place 1445 | -10/Exiles | Met 8R-AWN 1472 | -10/Exiles | Met EX-HEX 1563 | -10/Exiles | Met EX-DEC 1594 | -10/Exiles | Learned location of Zion (-6) 1624 | -10/Exiles | Met EX-BIN 1646 | -10/Exiles | Aligned with FarCom system 1648 | -10/Exiles | Given EX-Vault access code 1688 | -10/Exiles | Opened EX-Vault 1701 | -10/Exiles | Found Supersonic Drone Bay 1705 | -10/Exiles | Found AWS/Thermal 1741 | -10/Exiles | Warned to stay clear of 0b10 Research branches 1906 | -10/Exiles | Discovered new exit (range 11) 2694 | -10/Exiles | Build established: Hauler-Mutant 3019 | -10/Exiles | Attacked by the Exiles 3118 | -10/Exiles | Core integrity fell below 50% 3156 | -10/Exiles | Core integrity fell below 20% 3159 | -10/Exiles | Lost 4 parts (1p2n1w) 3201 | -10/Exiles | Destroyed by 8R-AWN with 8R-AWN's Boregun Last Messages --------------- 03163_ HV Slug penetrates Wall. 03167_ Penetrated by HV Slug. 03167_ HV Slug penetrates Earth. 03167_ Penetrated by HV Slug. 03167_ HV Slug penetrates Earth. 03171_ Earth collapses. 03172_ Penetrated by HV Slug. 03172_ HV Slug penetrates Earth. 03172_ Penetrated by HV Slug. 03172_ HV Slug penetrates Earth. 03174_ Machine disabled. 03176_ Penetrated by HV Slug. 03176_ HV Slug penetrates Earth. 03176_ Penetrated by HV Slug. 03176_ HV Slug penetrates Earth. 03180_ Penetrated by HV Slug. 03189_ HV Slug penetrates Wall. 03193_ Penetrated by HV Slug. 03193_ HV Slug penetrates Wall. 03197_ Penetrated by HV Slug. Map ----- +----------------------------------------------------+ | ?????????????????????????????????????????????????? | | ???????????#####?????????????????????????????????? | | ??????????## ##????????????????????????????????? | | ??????????# #????????????????????????????????? | | ??????????# < #????????????????????????????????? | | ??????????# ###??????????????????????????????? | | ??????????# #??????????????????????????????? | | ??????????# ##??????????????????????????????? | | ??????????## #???????????????????????????????? | | ???????????# ##??????????????????????????????? | | ???????????## #????????????#######???????????? | | ????????????# ! #######??????#!!! "#???????????? | | ????????????# !! #""##?????# "#???????????? | | ????????????## #???### "#???????????? | | ?????????????##" #### ## ""#???????????? | | ?????????????#"" ;#;;#" ""#???????????? | | ?????????????#### ;#" "#???????????? | | ????????????????## ;" ##????????????? | | ?????????????????#"## ;#????????????" | | ?????????????????####### ##????????????" | | ???????????????????????### "###?????????? | | ?????????????????########" ""#??????????? | | ?????????????????# !!""""" g ""#????????? | | ?????????????????#! [% ;;#"" %""####???## | | ?????????????????#! ;###" #####X | | ?????????????????#! @![##??#" | | ?????????????????# ! " ;##???#"# | | ?????????????????##;;##;;;##????#### | | ????????????????# ?# # # ????????### | | ????????????????##??# # ?#??????????### * | | ???????????????????# # #??????????????## | | ??????????????????# ## #????????????????## | | ?????????????????# #? ??????????????????##" | | ????????????????# #?# #???????????????????#""" | | ???????????????? #?? #???????????????????##" | | ??????????????? ???##????????????????????#"" | | ?????????????? ??????????????????????????#""" | | ????????????????????????????????????????#""" | | ????????????????????????????????????????#""" | | ????????????????????????????????????????#"" | | ????????????????????????????????????????#""" | | ????????????????????????????????????????#"" | | ????????????????????????????????????????##"" | | ?????????????????????????????????????????#"""" | | ?????????????????????????????????????????## | | ??????????????????????????????????????????#" | | ??????????????????????????????????????????#"""" | | ??????????????????????????????????????????#"" | | ???????????????????????????????????????????" | | ???????????????????????????????????????????""" | +----------------------------------------------------+ Best States ------------- Heat Dissipation 35 Energy Generation 10 Energy Capacity 250 Matter Stores 300 Matter Capacity 300 Sight Range 16 Robot Scan Range 15 Terrain Scan Density 10 Evasion (%) 40 Recoil Reduction 2 Item Schematics ----------------- None Robot Schematics ------------------ None Fabricated ------------ Nothing Alien Tech Used ----------------- None Achievements -------------- None Challenges ------------ None Game ------ Seed AssembledRecoilShield Manual? 0 Play Time 00:15:19 Cumulative 206.6 hours Start 2021.07.31 @ 14:51:40 End 2021.07.31 @ 15:06:55 Sessions 1 Manual Loads 0 Difficulty Rogue Special Mode None Game No. 270 Rogue 183 Adventurer 87 Explorer 0 Win Type - Total 4 Types 3/0/0/1/0/0/0/0/0 Lore% 68 Gallery% 76 Achievement% 62 Wizard Run 0 Options --------- ASCII 0 Keyboard 1 Movement Numpad Keybinds 0 Fullscreen 1 Font 18/Smallcaps Map View 76x50 Tactical HUD 1 Map Filters NONE Filters NONE Steam 1 RUN: 404033d8-c115-415e-ae90-ae3e5eb5a92f